fUST/lending_fUST_20260113
["ID","MTS","AMOUNT","RATE_DAILY","PERIOD"]
[401521508,1768288383758,-200.2296027,0.00012329,2]
[401521509,1768288391342,-259.3108722,0.00012329,2]
[401521510,1768288391366,-132.17437913,0.00012573,2]
[401521511,1768288397845,-167.82562087,0.00012573,2]
[401521512,1768288397867,-41.82592208,0.00012574,2]
[401521513,1768288400022,-286.83516312,0.00012574,2]
[401521514,1768288404984,-314.57897566,0.00012574,2]
[401521515,1768288408289,-319.04698472,0.00012574,2]
[401521516,1768288412665,-284.3906387,0.00012574,2]
[401521517,1768288421850,509.61792705,0.00030136,120]
[401521518,1768288437010,-342.03768935,0.00012574,2]
[401521519,1768288439262,-519.0,0.00012574,2]
[401521520,1768288453785,500.0,0.00030136,120]
[401521521,1768288454168,500.0,0.00030136,120]
[401521522,1768288454745,500.0,0.00030136,120]
[401521523,1768288454999,262.87836995,0.00030136,120]
[401521524,1768288455052,500.0,0.00030136,120]
[401521525,1768288455269,500.0,0.00030136,120]
[401521526,1768288455571,500.0,0.00030136,120]
[401521527,1768288455816,500.0,0.00030136,120]
[401521528,1768288456056,500.0,0.00030136,120]
[401521529,1768288456331,417.30573531,0.00030136,120]
[401521530,1768288486041,500.0,0.00030136,120]
[401521531,1768288486184,163.877474,0.00030136,120]
[401521532,1768288511136,506.71343656,0.00030136,120]
[401521533,1768288517627,536.54407749,0.00030136,120]
[401521534,1768288519811,347.29311639,0.00030136,120]
[401521535,1768288521162,525.68608495,0.00030136,120]
[401521536,1768288564331,589.1439579,0.00030136,120]
[401521537,1768288656474,523.53757343,0.00030136,120]
[401521538,1768288665568,500.0,0.00030136,120]
[401521539,1768288665835,500.0,0.00030136,120]
[401521540,1768288666126,500.0,0.00030136,120]
[401521541,1768288666644,500.0,0.00030136,120]
[401521542,1768288666874,289.22949324,0.00030136,120]
[401521543,1768288714723,500.0,0.00030136,120]
[401521544,1768288714965,500.0,0.00030136,120]
[401521545,1768288715204,500.0,0.00030136,120]
[401521546,1768288715435,500.0,0.00030136,120]
[401521547,1768288715725,500.0,0.00030136,120]
[401521548,1768288715971,500.0,0.00030136,120]
[401521549,1768288716234,500.0,0.00030136,120]
[401521550,1768288716499,500.0,0.00030136,120]
[401521551,1768288716796,500.0,0.00030136,120]
[401521552,1768288717039,500.0,0.00030136,120]
[401521553,1768288717314,500.0,0.00030136,120]
[401521554,1768288717600,500.0,0.00030136,120]
[401521555,1768288717876,500.0,0.00030136,120]
[401521556,1768288718122,500.0,0.00030136,120]
[401521557,1768288718472,500.0,0.00030136,120]
[401521558,1768288718639,545.06924338,0.00030136,120]
[401521559,1768288804633,155.43,5e-05,2]
[401521560,1768288805123,155.43,5.8e-05,2]
[401521561,1768288805691,155.43,6.5e-05,2]
[401521562,1768288806259,155.43,7.3e-05,2]
[401521563,1768288808409,155.41,5e-05,2]
[401521564,1768288901793,-300.0,0.00012573,2]
[401521565,1768288901816,-110.62574048,0.00012573,2]
[401521566,1768288906318,-487.37425952,0.00012573,2]
[401521567,1768288906344,-65.64846072,0.00012573,2]
[401521568,1768288907967,-345.68088783,0.00012573,2]
[401521569,1768288909582,-199.96,0.00012573,2]
[401521570,1768288913951,-316.77571629,0.00012573,2]
[401521571,1768289036594,-168.07811467,0.00012573,2]
[401521572,1768289038318,-103.85682049,0.00012573,2]
[401521573,1768289038342,-150.06752106,0.00012573,2]
[401521575,1768289156576,-293.3912338,0.00012573,2]
[401521576,1768289158402,230.0,0.00030136,120]
[401521577,1768289160386,-6.6087662,0.00012573,2]
[401521578,1768289160410,-159.66984553,0.00012573,2]
[401521579,1768289162546,-140.33015447,0.00012573,2]
[401521580,1768289162569,-159.66984553,0.00012573,2]
[401521581,1768289171561,-225.0,0.00012573,2]
[401521582,1768289171586,-0.49453583,0.00012573,2]
[401521583,1768289174301,-116.15486964,0.00012573,2]
[401521584,1768289174325,-125.530749,0.00012574,2]
[401521587,1768289247885,500.0,0.00030136,120]
[401521588,1768289248027,500.30009,0.00030136,120]
[401521589,1768289257235,4005.97719866,0.00030136,120]
[401521592,1768289381493,-302.07132373,0.0001,7]
[401521593,1768289381516,-123.36390496,0.00012574,2]
[401521594,1768289396466,-152.11,0.00012574,2]
[401521595,1768289398645,-270.98600293,0.00012574,2]
[401521596,1768289400158,-407.55273048,0.00012574,2]
[401521597,1768289402869,-282.95344019,0.00012574,2]
[401521598,1768289404621,-167.06774744,0.00012574,2]
[401521615,1768289432018,-4485.65774862,0.00012574,2]
[401521618,1768289432029,-330.25242726,0.00012574,2]
[401521620,1768289432041,-716.65322861,0.00012574,2]
[401521622,1768289432052,-314.00248406,0.00012574,2]
[401521624,1768289432062,-270.79286598,0.00012574,2]
[401521626,1768289432071,-300.0,0.00012574,2]
[401521627,1768289432081,-300.0,0.00012574,2]
[401521628,1768289432090,-300.0,0.00012574,2]
[401521629,1768289432099,-139.32517844,0.00012574,2]
[401521630,1768289432111,-160.67482156,0.00012574,2]
[401521631,1768289432120,-300.0,0.00012574,2]
[401521632,1768289432130,-300.0,0.00012574,2]
[401521633,1768289432139,-300.0,0.00012574,2]
[401521634,1768289432149,-300.0,0.00012574,2]
[401521635,1768289432158,-300.0,0.00012574,2]
[401521636,1768289432168,-300.0,0.00012574,2]
[401521637,1768289432177,-300.0,0.00012574,2]
[401521638,1768289432192,-300.0,0.00012574,2]
[401521639,1768289432206,-300.0,0.00012574,2]
[401521640,1768289432217,-300.0,0.00012574,2]
[401521641,1768289432226,-300.0,0.00012574,2]
[401521642,1768289432236,-598.0,0.00012574,2]
[401521643,1768289432246,-333.60184896,0.00013273,2]
[401521644,1768289432256,-500.0,0.00013273,2]
[401521645,1768289432266,-1000.0,0.00013699,2]
[401521646,1768289432275,-500.0,0.00013699,2]
[401521647,1768289432285,-1000.0,0.00013821,2]
[401521648,1768289432295,-1000.0,0.00014247,2]
[401521649,1768289432304,-981.77926784,0.00014368,2]
[401521650,1768289432314,-693.43990927,0.00014553,2]
[401521651,1768289432324,-2773.75963709,0.00014553,2]
[401521652,1768289432334,-6234.71822426,0.00014553,2]
[401521653,1768289432344,-170.9059022,0.00014553,2]
[401521654,1768289432354,-682.9399852,0.00014553,2]
[401521655,1768289432365,-500.0,0.00014572,2]
[401521656,1768289432374,-319.53558186,0.00014574,2]
[401521657,1768289432384,-173.039,0.0001459,2]
[401521658,1768289432394,-2924.92751597,0.00014662,2]
[401521659,1768289432404,-234.71112375,0.00014711,2]
[401521660,1768289432414,-163.21206948,0.00014711,2]
[401521661,1768289432424,-57631.49377832,0.00014712,2]
[401521662,1768289432436,-475.4221411,0.00014712,2]
[401521663,1768289432448,-31296.60905513,0.00014712,2]
[401521664,1768289432463,-5269.30010608,0.00014712,2]
[401521665,1768289432475,-2216.79966137,0.00014712,2]
[401521671,1768289438161,-6019.46421984,0.00014712,2]
[401521672,1768289438326,-3412.99791982,0.00014712,2]
[401521673,1768289438338,-2458.48881686,0.00014712,2]
[401521674,1768289438350,-3210.71773582,0.00014712,2]
[401521675,1768289438361,-5748.64559307,0.00014712,2]
[401521742,1768289440941,-3e-08,0.00014712,2]
[401521999,1768289446126,-4597.86217299,0.00014712,2]
[401522301,1768289471463,-613.42999997,0.00012329,2]
[401522302,1768289472049,176.41637302,0.0002325,120]
[401522304,1768289847149,-208.18519677,0.00013373,2]
[401522305,1768289936450,-196.51,0.00012329,2]
[401522306,1768289936472,-69.84376257,0.00013373,2]
[401522307,1768289936495,-231.44336633,0.00013575,2]
[401522308,1768289938763,-68.55663367,0.00013575,2]
[401522309,1768289938785,-185.44336633,0.00013576,2]
[401522311,1768289996451,-300.0,0.00013575,2]
[401522312,1768289996472,-128.11538093,0.00013576,2]
[401522313,1768289997980,-273.13235345,0.00013576,2]
[401522314,1768290000126,-217.11461226,0.00013576,2]
[401522316,1768290027827,1000.0,0.0003,120]
[401522317,1768290052034,41.45505545,0.0002,60]
[401522318,1768290052053,41.45505545,0.0002,60]
[401522320,1768290163470,-552.8147365,0.00013575,2]
[401522321,1768290169008,-60.1852635,0.00013575,2]
[401522322,1768290169034,-176.64575273,0.00013575,2]
[401522323,1768290170449,-123.35424727,0.00013575,2]
[401522324,1768290170473,-131.51949104,0.00013575,2]
[401522325,1768290173207,-140.94888911,0.00013575,2]
[401522326,1768290173232,-174.19780717,0.00013576,2]
[401522327,1768290174704,-184.85330372,0.00013576,2]
[401522328,1768290176810,-218.00861682,0.00013576,2]
[401522329,1768290178686,-189.17764271,0.00013576,2]
[401522330,1768290180855,-261.88009509,0.00013576,2]
[401522331,1768290221477,-152.58,0.00013575,2]
[401522332,1768290251479,-196.9355846,0.00013575,2]
[401522333,1768290254147,-103.0644154,0.00013575,2]
[401522334,1768290254169,-233.09,0.00013576,2]
[401522336,1768290517256,10000.0,0.00030137,120]
[401522337,1768290556164,10000.0,0.00030137,120]
[401522338,1768290583091,2629.0,0.00030137,120]
[401522339,1768290604541,152.58,5e-05,2]
[401522359,1768290632186,-300.0,0.00013575,2]
[401522360,1768290632195,-267.01901255,0.00013575,2]
[401522361,1768290632204,-5395.0442537,0.00013576,2]
[401522371,1768290638198,-91951.78530092,0.00013576,2]
[401522372,1768290638208,-528.77258797,0.00013698,2]
[401522373,1768290638218,-500.0,0.00013698,2]
[401522374,1768290638227,-223.72726653,0.00013698,2]
[401522375,1768290638237,-500.0,0.00013699,2]
[401522376,1768290638246,-300.0,0.00013846,2]
[401522377,1768290638255,-300.0,0.00013846,2]
[401522378,1768290638265,-300.0,0.00013846,2]
[401522379,1768290638274,-300.0,0.00013846,2]
[401522380,1768290638284,-300.0,0.00013846,2]
[401522381,1768290638293,-300.0,0.00013846,2]
[401522382,1768290638302,-300.0,0.00013846,2]
[401522383,1768290638311,-300.0,0.00013846,2]
[401522384,1768290638320,-300.0,0.00013846,2]
[401522385,1768290638330,-300.0,0.00013846,2]
[401522386,1768290638339,-300.0,0.00013846,2]
[401522387,1768290638349,-300.0,0.00013846,2]
[401522388,1768290638358,-300.0,0.00013846,2]
[401522389,1768290638367,-300.0,0.00013846,2]
[401522390,1768290638377,-300.0,0.00013846,2]
[401522391,1768290638386,-600.0,0.00013846,2]
[401522392,1768290638395,-3982.72055545,0.00013846,2]
[401522393,1768290638405,-1000.0,0.00014247,2]
[401522394,1768290638414,-3029.07334931,0.00014392,2]
[401522395,1768290638423,-473.0355936,0.000144,3]
[401522396,1768290638432,-377.3811929,0.000144,2]
[401522397,1768290638441,-386.2016256,0.000145,2]
[401522398,1768290638451,-376.1765592,0.000145,2]
[401522399,1768290638460,-500.0,0.00014572,2]
[401522400,1768290638469,-544.38094968,0.00014572,2]
[401522401,1768290638481,-5000.0,0.00014611,2]
[401522402,1768290638490,-164.29778663,0.00014611,2]
[401522403,1768290638500,-276.25095637,0.00014611,2]
[401522404,1768290638509,-500.0,0.00014611,2]
[401522405,1768290638518,-543.83401194,0.00014611,2]
[401522406,1768290638527,-500.0,0.00014611,2]
[401522407,1768290638537,-310.71744619,0.00014611,2]
[401522408,1768290638546,-200.0,0.00014611,2]
[401522409,1768290638555,-551576.46752637,0.00014612,2]
[401522410,1768290638566,-2490.76984384,0.00014612,2]
[401522446,1768290640641,-3e-08,0.00014612,2]
[401523147,1768290647885,-211455.85898414,0.00014612,2]
[401525916,1768291122051,-177.52279,0.00010123,2]
[401525917,1768291122074,-261.6786323,0.00011834,2]
[401525918,1768291122095,-311.3967302,0.0001341,2]
[401525919,1768291124658,-342.87325689,0.0001341,2]
[401525920,1768291126224,-228.08421647,0.0001341,2]
[401525921,1768291128873,-159.92820414,0.0001341,2]
[401525922,1768291130487,-269.73172446,0.0001341,2]
[401525923,1768291134616,-211.41602581,0.0001341,2]
[401525924,1768291136124,-388.58397419,0.0001341,2]
[401525925,1768291141022,152.65,0.00030136,120]
[401525927,1768291230904,200.0,0.00028687,120]
[401525928,1768291412523,1000.0,0.0003,120]
[401525935,1768291668630,155.0,9.5e-05,2]
[401525940,1768291770610,200.0,0.00028809,120]
[401525944,1768291830611,200.0,0.00027968,120]
[401525970,1768291832305,-4572.76047554,0.0001341,2]
[401525972,1768291832315,-256.44505965,0.00013444,2]
[401525974,1768291832324,-405.73222417,0.00013545,2]
[401525976,1768291832335,-1546.19267073,0.00013545,2]
[401525978,1768291832345,-243.0,0.00013697,2]
[401525980,1768291832354,-300.0,0.00013698,2]
[401525982,1768291832364,-300.0,0.00013698,2]
[401525984,1768291832374,-1000.0,0.00013699,2]
[401525986,1768291832383,-442.446056,0.00013699,2]
[401525988,1768291832393,-500.0,0.00013699,2]
[401525990,1768291832402,-300.0,0.00013972,2]
[401525992,1768291832411,-300.0,0.00013972,2]
[401525994,1768291832425,-300.0,0.00013972,2]
[401525996,1768291832435,-300.0,0.00013972,2]
[401525998,1768291832444,-300.0,0.00013972,2]
[401526000,1768291832453,-300.0,0.00013972,2]
[401526002,1768291832464,-300.0,0.00013972,2]
[401526004,1768291832474,-300.0,0.00013972,2]
[401526006,1768291832483,-300.0,0.00013972,2]
[401526008,1768291832494,-300.0,0.00013972,2]
[401526010,1768291832503,-300.0,0.00013972,2]
[401526012,1768291832513,-300.0,0.00013972,2]
[401526014,1768291832522,-300.0,0.00013972,2]
[401526016,1768291832531,-300.0,0.00013972,2]
[401526018,1768291832540,-300.0,0.00013972,2]
[401526020,1768291832550,-2398.4119403,0.000142,2]
[401526022,1768291832559,-500.0,0.00014229,2]
[401526024,1768291832568,-1000.0,0.00014247,2]
[401526026,1768291832577,-500.0,0.00014366,2]
[401526027,1768291832588,-68.86465747,0.00014501,2]
[401526030,1768291832603,-398.0,0.00014501,2]
[401526885,1768291848440,-811.58690881,0.00014501,2]
[401526887,1768291848453,-1750.62178303,0.00014501,2]
[401526889,1768291848464,-500.0,0.00014503,2]
[401526892,1768291848476,-173.039,0.00014503,2]
[401526894,1768291848486,-496.47127164,0.00014503,2]
[401526896,1768291848498,-250.0,0.00014503,2]
[401526898,1768291848508,-250.0,0.00014503,2]
[401526900,1768291848518,-181.08010149,0.00014503,2]
[401526902,1768291848529,-187.78006525,0.00014503,2]
[401526904,1768291848540,-194.72792766,0.00014503,2]
[401526906,1768291848550,-201.93286099,0.00014503,2]
[401526909,1768291848561,-209.40437684,0.00014503,2]
[401526911,1768291848572,-250.0,0.00014503,2]
[401526913,1768291848583,-217.15233878,0.00014503,2]
[401526915,1768291848593,-250.0,0.00014503,2]
[401526917,1768291848604,-225.18697532,0.00014503,2]
[401526919,1768291848615,-250.0,0.00014503,2]
[401526921,1768291848626,-233.51889341,0.00014503,2]
[401526923,1768291848638,-242.15909246,0.00014503,2]
[401526925,1768291848647,-251.11897888,0.00014503,2]
[401526943,1768291848766,-260.4103811,0.00014503,2]
[401526945,1768291848815,-270.0455652,0.00014503,2]
[401526947,1768291848826,-280.03725112,0.00014503,2]
[401526949,1768291848835,-290.39862941,0.00014503,2]
[401526951,1768291848845,-301.1433787,0.00014503,2]
[401526953,1768291848855,-240.18819146,0.00014511,2]
[401526955,1768291848864,-83977.26467625,0.00014512,2]
[401535363,1768292010713,200.0,0.00028223,120]
[401535364,1768292039874,515.52,0.00030136,120]
[401535365,1768292040154,515.52,0.00030136,120]
[401535366,1768292040681,515.52,0.00030136,120]
[401535367,1768292040924,515.52,0.00030136,120]
[401535368,1768292041198,515.52,0.00030136,120]
[401535369,1768292041466,515.52,0.00030136,120]
[401535370,1768292041726,515.52,0.00030136,120]
[401535371,1768292041996,515.52,0.00030136,120]
[401535372,1768292042413,515.52,0.00030136,120]
[401535373,1768292042632,515.52,0.00030136,120]
[401535374,1768292042883,515.52,0.00030136,120]
[401535375,1768292043252,515.52,0.00030136,120]
[401535376,1768292043426,515.52,0.00030136,120]
[401535377,1768292043672,515.52,0.00030136,120]
[401535378,1768292043919,515.52,0.00030136,120]
[401535379,1768292044226,515.52,0.00030136,120]
[401535380,1768292044483,515.52,0.00030136,120]
[401535381,1768292044718,515.52,0.00030136,120]
[401535382,1768292044982,515.52,0.00030136,120]
[401535383,1768292045233,515.52,0.00030136,120]
[401535384,1768292045499,515.52,0.00030136,120]
[401535385,1768292045757,515.52,0.00030136,120]
[401535386,1768292046004,515.52,0.00030136,120]
[401535387,1768292046258,515.754771,0.00030136,120]
[401535389,1768292750857,500.0,0.00030136,120]
[401535390,1768292751120,500.0,0.00030136,120]
[401535391,1768292751362,500.0,0.00030136,120]
[401535392,1768292751739,500.0,0.00030136,120]
[401535393,1768292751947,631.78605145,0.00030136,120]
[401535411,1768293032500,-458.23756058,0.00013382,2]
[401535412,1768293032512,-854.08839603,0.00013382,2]
[401535429,1768293038828,-178.89411969,0.00013382,2]
[401535430,1768293038838,-251.31615846,0.00013461,2]
[401535431,1768293038848,-300.0,0.00013598,2]
[401535432,1768293038857,-1200.0,0.00013598,2]
[401535433,1768293038871,-898985.73575233,0.00013599,2]
[401535501,1768293045861,-1422.70776101,0.00013599,2]
[401535507,1768293046638,-966.43673329,0.00013599,2]
[401535510,1768293604413,175.84,5e-05,2]
[401535511,1768293604908,175.84,8.1e-05,2]
[401535519,1768294024081,-1540.3208502,0.00013198,2]
[401535520,1768294024125,-246.28983529,0.00013299,2]
[401535521,1768294024167,-1200.0,0.00013399,2]
[401535522,1768294024211,-300.0,0.00013399,2]
[401535523,1768294024253,-1556.39862902,0.000134,2]
[401535527,1768294204464,150.79,5e-05,2]
[401535528,1768294205036,150.79,5.2e-05,2]
[401535529,1768294205431,-219.378922,0.0001273,2]
[401535530,1768294205642,150.79,5.4e-05,2]
[401535531,1768294206115,150.79,5.6e-05,2]
[401535532,1768294206691,150.79,5.8e-05,2]
[401535533,1768294207273,150.79,6e-05,2]
[401535534,1768294207836,150.79,6.1e-05,2]
[401535535,1768294208524,150.79,6.3e-05,2]
[401535536,1768294208566,-193.16145965,0.0001273,2]
[401535537,1768294209146,150.79,6.5e-05,2]
[401535538,1768294209648,150.79,6.7e-05,2]
[401535539,1768294210212,150.79,6.9e-05,2]
[401535540,1768294210674,150.79,7.1e-05,2]
[401535541,1768294211278,150.79,7.3e-05,2]
[401535542,1768294211744,150.79,7.5e-05,2]
[401535543,1768294212818,150.79,7.7e-05,2]
[401535544,1768294213201,150.79,7.9e-05,2]
[401535545,1768294215232,-160.77133971,0.0001273,2]
[401535546,1768294215447,150.76,5e-05,2]
[401535575,1768294231684,-313.99137098,0.000134,2]
[401535577,1768294231694,-300.36264751,0.000134,2]
[401535638,1768294237805,-129.61735249,0.000134,2]
[401535639,1768294237816,-4204.48252016,0.00013599,2]
[401535640,1768294237826,-43243.8187185,0.00013699,2]
[401535641,1768294237836,-221.223028,0.00013699,2]
[401535642,1768294237845,-212.10304378,0.00013699,2]
[401535643,1768294237856,-1540.3208502,0.0001374,2]
[401535645,1768294237865,-496.47127164,0.00013922,2]
[401535646,1768294237874,-1762.90445427,0.00013922,2]
[401535647,1768294237883,-181.08010149,0.00013922,2]
[401535648,1768294237893,-187.78006525,0.00013922,2]
[401535650,1768294238028,-194.72792766,0.00013922,2]
[401535651,1768294238038,-201.93286099,0.00013922,2]
[401535652,1768294238047,-209.40437684,0.00013922,2]
[401535653,1768294238056,-217.15233878,0.00013922,2]
[401535654,1768294238067,-225.18697532,0.00013922,2]
[401535655,1768294238076,-233.51889341,0.00013922,2]
[401535656,1768294238085,-242.15909246,0.00013922,2]
[401535657,1768294238095,-251.11897888,0.00013922,2]
[401535658,1768294238104,-260.4103811,0.00013922,2]
[401535659,1768294238114,-270.0455652,0.00013922,2]
[401535660,1768294238124,-280.03725112,0.00013922,2]
[401535661,1768294238133,-290.39862941,0.00013922,2]
[401535662,1768294238143,-301.1433787,0.00013922,2]
[401535663,1768294238152,-500.0,0.00014229,2]
[401535664,1768294238161,-500.0,0.00014229,2]
[401535665,1768294238170,-500.0,0.00014229,2]
[401535666,1768294238180,-500.0,0.00014229,2]
[401535667,1768294238189,-500.0,0.00014229,2]
[401535668,1768294238199,-500.0,0.00014229,2]
[401535669,1768294238209,-500.0,0.00014229,2]
[401535670,1768294238218,-500.0,0.00014229,2]
[401535671,1768294238228,-500.0,0.00014229,2]
[401535672,1768294238237,-500.0,0.00014229,2]
[401535673,1768294238246,-500.0,0.00014229,2]
[401535674,1768294238255,-500.0,0.00014229,2]
[401535675,1768294238264,-500.0,0.00014229,2]
[401535676,1768294238273,-500.0,0.00014229,2]
[401535677,1768294238282,-500.0,0.00014229,2]
[401535678,1768294238292,-500.0,0.00014229,2]
[401535679,1768294238301,-500.0,0.00014229,2]
[401535680,1768294238311,-500.0,0.00014229,2]
[401535681,1768294238320,-971.0,0.00014229,2]
[401535682,1768294238329,-500.0,0.00014229,2]
[401535683,1768294238339,-500.0,0.00014229,2]
[401535684,1768294238348,-761.0,0.00014229,2]
[401535685,1768294238358,-500.0,0.00014229,2]
[401535686,1768294238367,-500.0,0.00014229,2]
[401535687,1768294238377,-357701.4712804,0.000143,2]
[401535688,1768294238386,-500.0,0.00014366,2]
[401535689,1768294238395,-500.0,0.00014366,2]
[401535690,1768294238409,-500.0,0.00014366,2]
[401535691,1768294238419,-500.0,0.00014366,2]
[401535692,1768294238428,-500.0,0.00014366,2]
[401535693,1768294238437,-500.0,0.00014366,2]
[401535694,1768294238449,-500.0,0.00014366,2]
[401535695,1768294238470,-500.0,0.00014366,2]
[401535696,1768294238484,-500.0,0.00014366,2]
[401535697,1768294238495,-500.0,0.00014366,2]
[401535698,1768294238504,-500.0,0.00014366,2]
[401535699,1768294238515,-500.0,0.00014366,2]
[401535700,1768294238524,-500.0,0.00014366,2]
[401535701,1768294238534,-283.70970639,0.00014366,2]
[401535702,1768294238544,-500.0,0.00014366,2]
[401535703,1768294238554,-500.0,0.00014366,2]
[401535704,1768294238564,-500.0,0.00014366,2]
[401535705,1768294238574,-500.0,0.00014366,2]
[401535706,1768294238584,-500.0,0.00014366,2]
[401535707,1768294238594,-971.0,0.00014366,2]
[401535708,1768294238604,-500.0,0.00014366,2]
[401535709,1768294238614,-500.0,0.00014366,2]
[401535710,1768294238624,-761.0,0.00014366,2]
[401535711,1768294238634,-500.0,0.00014366,2]
[401535712,1768294238644,-500.0,0.00014366,2]
[401535713,1768294238654,-260.42752853,0.00014401,14]
[401535714,1768294238665,-1000.0,0.00014402,2]
[401535715,1768294238676,-422.70776101,0.00014402,2]
[401535716,1768294238686,-514.84070869,0.0001447,2]
[401535717,1768294238696,-289.86,0.00014474,2]
[401535718,1768294238705,-500.0,0.00014503,2]
[401535719,1768294238715,-500.0,0.00014503,2]
[401535720,1768294238725,-500.0,0.00014503,2]
[401535721,1768294238735,-266.99002628,0.00014503,2]
[401535722,1768294238745,-500.0,0.00014503,2]
[401535723,1768294238755,-500.0,0.00014503,2]
[401535724,1768294238765,-500.0,0.00014503,2]
[401535725,1768294238775,-500.0,0.00014503,2]
[401535726,1768294238785,-407.49285757,0.00014503,2]
[401535727,1768294238795,-500.0,0.00014503,2]
[401535728,1768294238805,-500.0,0.00014503,2]
[401535729,1768294238814,-240.01275886,0.00014503,2]
[401535730,1768294238823,-500.0,0.00014503,2]
[401535731,1768294238833,-500.0,0.00014503,2]
[401535732,1768294238843,-500.0,0.00014503,2]
[401535733,1768294238853,-500.0,0.00014503,2]
[401535734,1768294238863,-500.0,0.00014503,2]
[401535735,1768294238873,-500.0,0.00014503,2]
[401535736,1768294238883,-971.0,0.00014503,2]
[401535737,1768294238893,-261.62124068,0.00014503,2]
[401535738,1768294238903,-500.0,0.00014503,2]
[401535739,1768294238913,-761.0,0.00014503,2]
[401535740,1768294238923,-500.0,0.00014503,2]
[401535741,1768294238933,-500.0,0.00014503,2]
[401535742,1768294238943,-450.0,0.0001464,2]
[401535743,1768294238953,-500.0,0.0001464,2]
[401535744,1768294238962,-159.5717999,0.0001464,2]
[401535745,1768294238973,-500.0,0.0001464,2]
[401535746,1768294238983,-235.55311222,0.0001464,2]
[401535747,1768294238993,-500.0,0.0001464,2]
[401535748,1768294239002,-401.72783748,0.0001464,2]
[401535749,1768294239012,-500.0,0.0001464,2]
[401535750,1768294239022,-500.0,0.0001464,2]
[401535751,1768294239032,-500.0,0.0001464,2]
[401535752,1768294239042,-305.34671778,0.0001464,2]
[401535753,1768294239052,-504.76285516,0.0001464,2]
[401535754,1768294239061,-227.04753207,0.0001464,2]
[401535755,1768294239071,-500.0,0.0001464,2]
[401535756,1768294239081,-500.0,0.0001464,2]
[401535757,1768294239091,-500.0,0.0001464,2]
[401535758,1768294239101,-500.0,0.0001464,2]
[401535759,1768294239110,-202.75586291,0.0001464,2]
[401535760,1768294239119,-971.0,0.0001464,2]
[401535761,1768294239129,-500.0,0.0001464,2]
[401535762,1768294239140,-761.0,0.0001464,2]
[401535763,1768294239149,-500.0,0.0001464,2]
[401535764,1768294239159,-500.0,0.0001464,2]
[401535765,1768294239169,-800.0,0.00014776,2]
[401535766,1768294239178,-500.0,0.00014777,2]
[401535767,1768294239188,-500.0,0.00014777,2]
[401535768,1768294239197,-500.0,0.00014777,2]
[401535769,1768294239207,-500.0,0.00014777,2]
[401535770,1768294239217,-500.0,0.00014777,2]
[401535771,1768294239226,-500.0,0.00014777,2]
[401535772,1768294239235,-153.32118703,0.00014777,2]
[401535773,1768294239246,-396.0,0.00014777,2]
[401535774,1768294239255,-467.0021236,0.00014777,2]
[401535775,1768294239266,-500.0,0.00014777,2]
[401535776,1768294239275,-971.0,0.00014777,2]
[401535777,1768294239286,-500.0,0.00014777,2]
[401535778,1768294239300,-500.0,0.00014777,2]
[401535779,1768294239312,-761.0,0.00014777,2]
[401535780,1768294239323,-500.0,0.00014777,2]
[401535781,1768294239333,-500.0,0.00014777,2]